bitfinex-derivatives/quotes_BTCF0:USTF0_20241221
["timestamp","ask_amount","ask_price","bid_price","bid_amount"]
[1734812531899,0.051076,97937.0,97935.0,0.3618]
[1734812534104,0.00307674,97939.0,97935.0,0.3608]
[1734812534310,0.002,97937.0,97935.0,0.3608]
[1734812534608,0.008,97937.0,97935.0,0.3618]
[1734812535302,7.674e-05,97939.0,97935.0,0.3618]
[1734812535499,0.00107674,97939.0,97935.0,0.3618]
[1734812536213,0.00607674,97939.0,97935.0,0.3608]
[1734812536718,0.00107674,97939.0,97935.0,0.3608]
[1734812537013,7.674e-05,97939.0,97935.0,0.3608]
[1734812537311,0.051076,97936.0,97935.0,0.001]
[1734812538813,0.001,97936.0,97926.0,0.056]
[1734812539518,0.006,97936.0,97926.0,0.056]
[1734812540010,0.004,97936.0,97926.0,0.056]
[1734812540401,0.051079,97932.0,97902.0,0.411894]
[1734812540601,0.3608,97934.0,97912.0,0.06]
[1734812540602,0.23175149,97921.0,97912.0,0.06]
[1734812541515,0.051087,97917.0,97912.0,0.06]
[1734812541716,9.27e-05,97920.0,97912.0,0.06]
[1734812541918,0.051088,97914.0,97912.0,0.06]
[1734812542117,9.27e-05,97920.0,97912.0,0.06]
[1734812542311,0.0511777,97920.0,97912.0,0.06]
[1734812543012,9.27e-05,97920.0,97912.0,0.06]
[1734812543208,0.00935319,97920.0,97919.0,0.3608]
[1734812543412,9.27e-05,97920.0,97919.0,0.411885]
[1734812543609,9.27e-05,97920.0,97919.0,0.3608]
[1734812544419,9.27e-05,97920.0,97919.0,0.3658]
[1734812544624,9.27e-05,97920.0,97919.0,0.3688]
[1734812544815,9.27e-05,97920.0,97919.0,0.3638]
[1734812545014,9.27e-05,97920.0,97919.0,0.3678]
[1734812545212,9.27e-05,97920.0,97919.0,0.3648]
[1734812545418,0.01532001,97948.0,97919.0,0.6678]
[1734812545625,0.01532001,97948.0,97947.0,0.3608]
[1734812546911,0.02632001,97948.0,97947.0,0.3608]
[1734812547322,0.02632001,97948.0,97947.0,0.3618]
[1734812547523,0.02332001,97948.0,97947.0,0.3618]
[1734812547724,0.02632001,97948.0,97947.0,0.3618]
[1734812548425,0.02532001,97948.0,97947.0,0.3618]
[1734812549413,0.02332001,97948.0,97947.0,0.3618]
[1734812549620,0.008,97948.0,97947.0,0.3618]
[1734812550128,0.008,97948.0,97947.0,0.41287]
[1734812550922,0.00890744,97958.0,97947.0,0.41287]
[1734812550923,0.34324,97959.0,97949.0,0.051069]
[1734812551124,0.34324,97959.0,97958.0,0.3608]
[1734812551625,0.35241084,97959.0,97958.0,0.3608]
[1734812551927,0.05107,97948.0,97947.0,0.001]
[1734812552140,0.23175149,97957.0,97947.0,0.3618]
[1734812552513,0.35241084,97959.0,97947.0,0.3618]
[1734812552718,0.35241084,97959.0,97947.0,0.3608]
[1734812552913,0.35641084,97959.0,97949.0,0.001]
[1734812553718,0.003,97957.0,97947.0,0.3618]
[1734812554331,0.35241084,97959.0,97949.0,0.001]
[1734812555728,0.35241084,97959.0,97947.0,0.3608]
[1734812555921,0.004,97957.0,97947.0,0.3618]
[1734812556322,0.001,97957.0,97947.0,0.3608]
[1734812556516,0.001,97957.0,97949.0,0.001]
[1734812556725,0.35641084,97959.0,97949.0,0.001]
[1734812556934,0.35341084,97959.0,97947.0,0.3608]
[1734812557231,0.003,97957.0,97947.0,0.3618]
[1734812557428,0.004,97957.0,97947.0,0.3618]
[1734812557638,0.004,97957.0,97949.0,0.001]
[1734812558530,0.051069,97951.0,97949.0,0.001]
[1734812559017,0.12717434,97950.0,97925.0,0.71843361]
[1734812559223,0.23175149,97941.0,97928.0,0.29807895]
[1734812560728,0.23475149,97941.0,97925.0,0.3608]
[1734812560927,0.23575149,97941.0,97925.0,0.3608]
[1734812562129,0.23675149,97941.0,97925.0,0.3608]
[1734812562636,0.23275149,97941.0,97925.0,0.3608]
[1734812562834,0.23675149,97941.0,97925.0,0.3608]
[1734812564125,0.051075,97938.0,97925.0,0.3608]
[1734812564541,0.23675149,97941.0,97925.0,0.3608]
[1734812564837,0.24600828,97941.0,97925.0,0.3608]
[1734812565333,0.004,97938.0,97933.0,0.3608]
[1734812565519,0.004,97938.0,97936.0,0.051076]
[1734812565520,0.005,97938.0,97936.0,0.051076]
[1734812565726,0.001,97938.0,97936.0,0.051076]
[1734812566324,0.051067,97955.0,97939.0,0.051074]
[1734812566533,0.051067,97954.0,97947.0,0.3608]
[1734812566727,0.05107,97949.0,97947.0,0.3608]
[1734812567823,0.01118055,97955.0,97934.0,0.3608]
[1734812568144,0.051074,97941.0,97925.0,0.3608]
[1734812568437,0.051074,97941.0,97939.0,0.001]
[1734812568844,0.23175149,97944.0,97939.0,0.001]
[1734812569031,0.23175149,97944.0,97934.0,0.001]
[1734812569540,0.004,97941.0,97925.0,0.3608]
[1734812570149,0.01532001,97940.0,97925.0,0.3608]
[1734812570838,0.06639401,97940.0,97925.0,0.3608]
[1734812571034,0.051075,97939.0,97925.0,0.3608]
[1734812571741,0.01532001,97940.0,97925.0,0.3608]
[1734812572037,0.051077,97935.0,97925.0,0.3608]
[1734812572541,0.051077,97935.0,97925.0,0.3618]
[1734812573542,0.03080793,97940.0,97917.0,0.413086]
[1734812573543,0.051083,97924.0,97917.0,0.0012]
[1734812573740,0.051084,97921.0,97912.0,0.23890223]
[1734812574538,0.051084,97921.0,97907.0,0.47994]
[1734812574742,0.23175149,97917.0,97907.0,0.4787]
[1734812575532,0.23175149,97917.0,97907.0,0.4877]
[1734812576142,0.23175149,97917.0,97907.0,0.4927]
[1734812576641,0.23175149,97917.0,97915.0,0.3608]
[1734812578145,0.051087,97916.0,97915.0,0.3678]
[1734812578341,0.051087,97916.0,97915.0,0.3718]
[1734812581444,0.24301299,97917.0,97915.0,0.3718]
[1734812582156,0.29409899,97917.0,97915.0,0.011]
[1734812582359,0.0607,97916.0,97915.0,0.011]
[1734812582660,0.4215,97916.0,97915.0,0.011]
[1734812583657,0.29409899,97917.0,97915.0,0.011]
[1734812583658,0.0112615,97917.0,97915.0,0.007]
[1734812583855,0.01187434,97926.0,97915.0,0.011]
[1734812584150,0.34324,97945.0,97925.0,0.3608]
[1734812584351,0.34324,97945.0,97939.0,0.3608]
[1734812584858,0.35441827,97945.0,97939.0,0.3608]
[1734812585562,0.004,97940.0,97926.0,0.0611]
[1734812585754,0.23575149,97940.0,97926.0,0.0611]
[1734812585949,0.35841827,97945.0,97939.0,0.001]
[1734812586460,0.36041827,97945.0,97939.0,0.001]
[1734812588054,0.35641827,97945.0,97933.0,0.3608]
[1734812588257,0.004,97940.0,97933.0,0.3608]
[1734812588659,0.35641827,97945.0,97933.0,0.3608]
[1734812588867,0.36041827,97945.0,97939.0,0.001]
[1734812589462,0.051074,97941.0,97939.0,0.001]
[1734812589663,0.0586,97940.0,97939.0,0.001]
[1734812591070,0.0626,97940.0,97928.0,0.3608]
[1734812591270,0.05108,97930.0,97916.0,0.0582]
[1734812591471,0.28283149,97930.0,97916.0,0.0582]
[1734812591670,0.01532001,97929.0,97916.0,0.0582]
[1734812591863,0.051083,97924.0,97915.0,0.3608]
[1734812592059,0.051083,97923.0,97915.0,0.3608]
[1734812592259,0.06640301,97923.0,97915.0,0.3608]
[1734812592462,0.06640301,97923.0,97916.0,0.001]
[1734812593164,0.06640301,97923.0,97915.0,0.3678]
[1734812593667,0.01532001,97923.0,97915.0,0.3678]
[1734812593865,0.051087,97916.0,97915.0,0.007]
[1734812594571,0.0777323,97923.0,97916.0,0.003]
[1734812594871,0.0777323,97923.0,97916.0,0.007]
[1734812595073,0.0266493,97923.0,97900.0,0.1]
[1734812595264,0.051094,97902.0,97900.0,0.03082993]
[1734812597472,0.052094,97902.0,97900.0,0.03082993]
[1734812599573,0.001,97902.0,97900.0,0.03082993]
[1734812600076,0.001,97902.0,97900.0,0.08192493]
[1734812600372,0.06640301,97923.0,97911.0,0.051089]
[1734812600373,0.01532001,97923.0,97911.0,0.051089]
[1734812600678,0.01532001,97923.0,97922.0,0.3608]
[1734812600863,0.01532001,97923.0,97914.0,0.3608]
[1734812601372,0.02658956,97923.0,97914.0,0.3608]
[1734812601765,0.03058956,97923.0,97914.0,0.3608]
[1734812601967,0.01932001,97923.0,97914.0,0.3608]
[1734812602273,0.01732001,97923.0,97914.0,0.3608]
[1734812602474,0.051084,97922.0,97914.0,0.3608]
[1734812603380,0.01732001,97923.0,97914.0,0.3608]
[1734812604169,0.01532001,97923.0,97914.0,0.3608]
[1734812604372,0.01732001,97923.0,97914.0,0.3608]
[1734812605281,0.01532001,97923.0,97914.0,0.3608]
[1734812605474,0.01932001,97923.0,97914.0,0.3608]
[1734812605873,0.01732001,97923.0,97914.0,0.3608]
[1734812607991,0.051085,97920.0,97914.0,0.3608]
[1734812609180,0.002,97920.0,97914.0,0.3608]
[1734812609486,0.002,97920.0,97918.0,0.051085]
[1734812610184,0.01532001,97935.0,97919.0,0.051085]
[1734812610379,0.001,97920.0,97919.0,0.051085]
[1734812610579,0.002,97920.0,97919.0,0.051085]
[1734812611288,0.001,97920.0,97919.0,0.051085]
[1734812611684,0.052085,97920.0,97918.0,0.3608]
[1734812612182,0.051088,97913.0,97912.0,0.23890223]
[1734812612682,0.05109,97909.0,97908.0,0.3608]
[1734812613784,0.051093,97904.0,97902.0,0.23890223]
[1734812613980,0.051093,97904.0,97900.0,0.03082993]
[1734812615283,0.051093,97904.0,97900.0,0.03482993]
[1734812615491,0.051093,97904.0,97900.0,0.04082993]
[1734812615888,0.06226265,97904.0,97900.0,0.04082993]
[1734812616086,0.01116965,97904.0,97902.0,0.3608]
[1734812616287,0.3608,97913.0,97900.0,0.04082993]
[1734812616487,0.051094,97902.0,97900.0,0.04082993]
[1734812618793,0.05109,97909.0,97900.0,0.04082993]
[1734812619178,0.37217006,97913.0,97900.0,0.04082993]
[1734812619383,0.051091,97907.0,97900.0,0.04082993]
[1734812619890,0.051092,97906.0,97900.0,0.03082993]
[1734812620083,0.051092,97906.0,97900.0,0.03782993]
[1734812621488,0.051092,97906.0,97900.0,0.03882993]
[1734812621886,0.37273007,97913.0,97900.0,0.03882993]
[1734812622085,0.051094,97902.0,97900.0,0.03982993]
[1734812622486,0.051094,97902.0,97900.0,0.03682993]
[1734812622688,0.051094,97902.0,97900.0,0.04082993]
[1734812623083,0.051094,97902.0,97900.0,0.03482993]
[1734812623402,0.051094,97902.0,97900.0,0.04082993]
[1734812624390,0.0596,97901.0,97900.0,0.04082993]
[1734812625697,0.0596,97901.0,97900.0,0.03682993]
[1734812625999,0.0596,97901.0,97900.0,0.04082993]
[1734812630203,0.07496001,97901.0,97900.0,0.04082993]
[1734812631797,0.01536001,97901.0,97900.0,0.04082993]
[1734812637804,0.01536001,97901.0,97900.0,0.03482993]
[1734812637999,0.01536001,97901.0,97900.0,0.03282993]
[1734812638793,0.01536001,97901.0,97890.0,0.3608]
[1734812638995,0.0511,97891.0,97890.0,0.3608]
[1734812640995,0.0511,97891.0,97890.0,0.006]
[1734812641607,0.1156,97891.0,97890.0,0.007]
[1734812641806,0.1156,97891.0,97890.0,0.011]
[1734812643503,0.12741888,97891.0,97890.0,0.011]
[1734812643704,0.12641888,97891.0,97868.0,0.0636]
[1734812643903,0.3608,97876.0,97868.0,0.0636]
[1734812645008,0.3608,97876.0,97873.0,0.065]
[1734812645209,0.3618,97876.0,97873.0,0.074]
[1734812646906,0.01185783,97876.0,97873.0,0.074]
[1734812647411,0.00052001,97887.0,97874.0,0.3608]
[1734812647706,0.15040508,97900.0,97874.0,0.3608]
[1734812647707,0.15040508,97900.0,97886.0,0.411902]
[1734812647913,0.15040508,97900.0,97887.0,0.0623]
[1734812648103,0.16118516,97900.0,97887.0,0.0623]
[1734812648300,0.051097,97897.0,97887.0,0.0623]
[1734812648504,0.16118516,97900.0,97887.0,0.0623]
[1734812648709,0.051097,97896.0,97887.0,0.0623]
[1734812648916,0.051098,97895.0,97889.0,0.17941204]
[1734812649206,0.16118516,97900.0,97889.0,0.17941204]
[1734812649408,0.051099,97894.0,97889.0,0.17941204]
[1734812649813,0.051099,97894.0,97887.0,0.0623]
[1734812650705,0.051099,97894.0,97888.0,0.0649]
[1734812653215,0.21228016,97900.0,97888.0,0.0649]
[1734812653525,0.21228016,97900.0,97889.0,0.0511]
[1734812654315,0.21228016,97900.0,97889.0,0.23051204]
[1734812655205,0.21228016,97900.0,97889.0,0.0511]
[1734812656007,0.01536001,97908.0,97899.0,0.3608]
[1734812656211,0.01536001,97912.0,97911.0,0.051089]
[1734812656415,0.3608,97920.0,97907.0,0.3608]
[1734812656416,0.01532001,97915.0,97912.0,0.051089]
[1734812656718,0.01532001,97915.0,97913.0,0.0652]
[1734812657719,0.01832001,97915.0,97913.0,0.0652]
[1734812657919,0.02532001,97915.0,97913.0,0.0662]
[1734812658618,0.01175278,97933.0,97932.0,0.051078]
[1734812658823,0.01532001,97951.0,97934.0,0.051077]
[1734812659026,0.01532001,97951.0,97932.0,0.7216]
[1734812659027,0.01532001,97951.0,97943.0,0.051072]
[1734812659326,0.0264518,97951.0,97946.0,0.3608]
[1734812660326,0.05107,97949.0,97946.0,0.3608]
[1734812660710,0.05107,97949.0,97946.0,0.3618]
[1734812661115,0.0414518,97951.0,97946.0,0.3618]
[1734812661423,0.006,97949.0,97946.0,0.3618]
[1734812662920,0.006,97949.0,97948.0,0.05107]
[1734812663418,0.34336,97958.0,97948.0,0.05107]
[1734812663626,0.35425439,97958.0,97956.0,0.3608]
[1734812664112,0.35425439,97958.0,97947.0,0.0664]
[1734812664312,0.004,97949.0,97948.0,0.001]
[1734812664619,0.004,97949.0,97929.0,0.3608]
[1734812664810,0.51120508,97940.0,97929.0,0.3608]
[1734812665007,0.051078,97933.0,97926.0,0.17941204]
[1734812665917,0.3608,97930.0,97926.0,0.17941204]
[1734812666127,0.3608,97930.0,97923.0,0.0645]
[1734812666924,0.3608,97930.0,97924.0,0.051082]
[1734812667320,0.15040508,97940.0,97927.0,0.3608]
[1734812667521,0.003,97930.0,97927.0,0.3608]
[1734812668125,0.002,97930.0,97927.0,0.3608]
[1734812668436,0.003,97930.0,97927.0,0.3608]
[1734812669018,0.003,97930.0,97923.0,0.0645]
[1734812669416,0.001,97930.0,97923.0,0.0645]
[1734812669617,0.003,97930.0,97923.0,0.0645]
[1734812670114,0.051082,97926.0,97918.0,0.3608]
[1734812670319,0.051084,97921.0,97918.0,0.3608]
[1734812670722,0.0622,97925.0,97918.0,0.3608]
[1734812671122,0.3608,97921.0,97904.0,0.0613]
[1734812671323,0.051085,97920.0,97904.0,0.0613]
[1734812672320,0.15040508,97920.0,97918.0,0.002]
[1734812672521,0.37191942,97930.0,97918.0,0.002]
[1734812672724,0.5223245,97930.0,97918.0,0.003]
[1734812673529,0.051082,97925.0,97918.0,0.003]
[1734812673927,0.051082,97925.0,97918.0,0.008]
[1734812674229,0.051082,97925.0,97918.0,0.006]
[1734812674622,0.5223245,97930.0,97918.0,0.006]
[1734812674821,0.5734045,97930.0,97918.0,0.006]
[1734812675424,0.5734045,97930.0,97918.0,0.001]
[1734812675727,0.06640001,97929.0,97918.0,0.004]
[1734812675938,0.06640001,97929.0,97918.0,0.005]
[1734812676126,0.01532001,97929.0,97918.0,0.003]
[1734812676328,0.051084,97921.0,97918.0,0.003]
[1734812676530,0.1328,97920.0,97918.0,0.003]
[1734812676723,0.1959,97920.0,97918.0,0.002]
[1734812677031,0.394365,97919.0,97918.0,0.002]
[1734812677427,0.394365,97919.0,97918.0,0.001]
[1734812677622,0.34328,97919.0,97892.0,0.3608]
[1734812677926,0.3608,97908.0,97892.0,0.36196]
[1734812678125,0.3608,97908.0,97892.0,0.3608]
[1734812679122,0.3608,97908.0,97897.0,0.01053189]
[1734812679322,0.051092,97907.0,97897.0,0.01053189]
[1734812679829,0.3618,97908.0,97897.0,0.01753189]
[1734812680024,0.051094,97903.0,97897.0,0.01753189]
[1734812680423,0.051096,97899.0,97897.0,0.01753189]
[1734812681937,0.051096,97899.0,97897.0,0.016]
[1734812681938,0.4976,97898.0,97897.0,0.016]
[1734812682136,0.4976,97898.0,97897.0,0.007]
[1734812682834,0.548696,97898.0,97897.0,0.007]
[1734812683223,0.549696,97898.0,97897.0,0.007]
[1734812683424,0.5629,97898.0,97882.0,0.3608]
[1734812683637,0.15040508,97892.0,97882.0,0.3608]
[1734812684233,0.051101,97889.0,97882.0,0.3608]
[1734812684531,0.051103,97886.0,97882.0,0.3608]
[1734812684728,0.051103,97886.0,97882.0,0.3688]
[1734812685538,0.051103,97886.0,97882.0,0.3708]
[1734812686136,0.051112,97868.0,97860.0,0.17420149]
[1734812686434,0.051117,97857.0,97855.0,0.23890223]
[1734812686636,0.051117,97857.0,97855.0,0.15314836]
[1734812686935,0.051116,97860.0,97855.0,0.15314836]
[1734812687136,0.051118,97857.0,97833.0,0.05113]
[1734812687343,0.3608,97844.0,97829.0,0.411932]
[1734812687529,0.15040508,97842.0,97829.0,0.3608]
[1734812687837,0.3608,97844.0,97829.0,0.3608]
[1734812688139,0.3608,97844.0,97837.0,0.051127]
[1734812688842,0.23208359,97850.0,97837.0,0.051127]
[1734812689142,0.051121,97851.0,97837.0,0.051127]
[1734812689340,0.3608,97853.0,97837.0,0.051127]
[1734812689540,0.051121,97850.0,97837.0,0.065127]
[1734812689838,0.3608,97853.0,97837.0,0.014]
[1734812690040,0.051123,97847.0,97837.0,0.014]
[1734812690239,0.3608,97853.0,97837.0,0.009]
[1734812690445,0.051124,97844.0,97837.0,0.014]
[1734812691152,0.23208359,97850.0,97837.0,0.014]
[1734812691339,0.051127,97838.0,97837.0,0.014]
[1734812691533,0.3608,97844.0,97837.0,0.014]
[1734812691534,0.34842287,97844.0,97837.0,0.014]
[1734812691746,0.34842287,97844.0,97837.0,0.009]
[1734812691929,0.34842287,97844.0,97837.0,0.014]
[1734812692134,0.051127,97838.0,97837.0,0.014]
[1734812692745,0.051125,97843.0,97837.0,0.014]
[1734812692944,0.051126,97841.0,97837.0,0.014]
[1734812693139,0.051127,97840.0,97837.0,0.005]
[1734812693339,0.051127,97839.0,97837.0,0.014]
[1734812694738,0.051127,97839.0,97837.0,0.009]
[1734812694936,0.051127,97839.0,97837.0,0.014]
[1734812695539,0.051127,97839.0,97837.0,0.009]
[1734812695738,0.051127,97839.0,97837.0,0.014]
[1734812698951,0.3588652,97844.0,97837.0,0.014]
[1734812699151,0.4099892,97844.0,97837.0,0.014]
[1734812699352,0.3588652,97844.0,97837.0,0.014]
[1734812699838,0.051127,97839.0,97837.0,0.014]
[1734812701240,0.051127,97839.0,97837.0,0.005]
[1734812701443,0.051127,97839.0,97837.0,0.014]
[1734812702138,0.051127,97839.0,97837.0,0.009]
[1734812702346,0.051127,97839.0,97837.0,0.014]
[1734812702650,0.00011785,97838.0,97837.0,0.014]
[1734812705059,0.00111785,97838.0,97837.0,0.005]
[1734812705237,0.00111785,97838.0,97817.0,0.068]
[1734812705441,0.3608,97827.0,97817.0,0.068]
[1734812705649,0.3608,97818.0,97817.0,0.068]
[1734812706971,0.3608,97818.0,97817.0,0.072]
[1734812708769,0.3608,97818.0,97817.0,0.081]
[1734812709461,0.3608,97818.0,97817.0,0.072]
[1734812709769,0.01056458,97819.0,97817.0,0.081]
[1734812709964,0.051135,97825.0,97817.0,0.081]
[1734812710759,0.37140933,97827.0,97817.0,0.081]
[1734812711563,0.051135,97824.0,97817.0,0.081]
[1734812711773,0.051137,97820.0,97817.0,0.081]
[1734812712065,0.0661,97826.0,97817.0,0.081]
[1734812712271,0.3608,97818.0,97817.0,0.013]
[1734812712471,0.051138,97817.0,97806.0,0.00011232]
[1734812712770,0.3608,97807.0,97806.0,0.00011232]
[1734812712970,0.3608,97818.0,97806.0,0.00011232]
[1734812713277,0.3608,97818.0,97817.0,0.009]
[1734812713774,0.051144,97807.0,97806.0,0.00011232]
[1734812713968,0.051144,97807.0,97800.0,0.1]
[1734812713969,0.411944,97807.0,97800.0,0.1012]
[1734812714173,0.051152,97791.0,97781.0,0.0644]
[1734812714372,0.411952,97791.0,97781.0,0.0644]
[1734812714571,0.34886135,97791.0,97781.0,0.0644]
[1734812715178,0.34896479,97791.0,97781.0,0.0644]
[1734812715375,0.34896479,97791.0,97790.0,0.01053357]
[1734812715559,0.36090344,97791.0,97790.0,0.01053357]
[1734812716268,0.36090344,97791.0,97790.0,0.01453357]
[1734812717672,0.00010344,97791.0,97790.0,0.01453357]
[1734812717874,0.3608,97811.0,97790.0,0.07613357]
[1734812718069,0.36132001,97825.0,97794.0,0.3608]
[1734812718272,0.3608,97825.0,97812.0,0.051141]
[1734812718466,0.3608,97825.0,97813.0,0.0621]
[1734812718877,0.00011945,97824.0,97813.0,0.0621]
[1734812719366,0.051135,97823.0,97813.0,0.0621]
[1734812719767,0.051136,97821.0,97813.0,0.0621]
[1734812720069,0.00011945,97824.0,97813.0,0.0621]
[1734812720271,0.051138,97819.0,97813.0,0.0621]
[1734812720971,0.00011945,97824.0,97813.0,0.0641]
[1734812721177,0.05125445,97824.0,97814.0,0.0614]
[1734812721374,0.00011945,97824.0,97816.0,0.3608]
[1734812721575,0.00011945,97824.0,97819.0,0.051137]
[1734812721769,0.00011945,97824.0,97814.0,0.0614]
[1734812722475,0.00011945,97824.0,97814.0,0.0624]
[1734812722681,0.00011945,97824.0,97814.0,0.11354]
[1734812722982,0.00011945,97824.0,97814.0,0.11454]
[1734812724281,0.05125445,97824.0,97814.0,0.11454]
[1734812728074,0.00011945,97824.0,97814.0,0.0634]
[1734812728477,0.00011945,97824.0,97818.0,0.051138]
[1734812730274,0.01536001,97823.0,97818.0,0.051138]
[1734812730488,0.01536001,97823.0,97814.0,0.124]
[1734812730681,0.051139,97817.0,97814.0,0.0624]
[1734812730877,0.051139,97816.0,97814.0,0.0624]
[1734812731083,0.3608,97815.0,97814.0,0.0624]
[1734812731273,0.3608,97815.0,97814.0,0.001]
[1734812731683,0.3608,97815.0,97810.0,0.051142]
[1734812731889,0.3608,97815.0,97806.0,0.0647]
[1734812731890,0.3608,97815.0,97811.0,0.051141]
[1734812732077,0.3618,97815.0,97811.0,0.051141]
[1734812732278,0.3638,97815.0,97811.0,0.051141]
[1734812732588,0.003,97815.0,97814.0,0.05114]
[1734812732790,0.003,97815.0,97814.0,0.41194]
[1734812732983,0.002,97815.0,97814.0,0.41194]
[1734812734481,0.051138,97818.0,97814.0,0.41194]
[1734812734687,0.001,97815.0,97814.0,0.05114]
[1734812735278,0.01051591,97818.0,97817.0,0.051138]
[1734812735591,0.01536001,97823.0,97822.0,0.051136]
[1734812736087,0.00011945,97824.0,97822.0,0.051136]
[1734812736395,0.01083902,97824.0,97823.0,0.0659]
[1734812736687,0.00011945,97824.0,97823.0,0.0659]
[1734812737781,0.0106343,97824.0,97823.0,0.0659]
[1734812738693,0.051126,97840.0,97836.0,0.051128]
[1734812738987,0.051127,97839.0,97837.0,0.0656]
[1734812740081,0.004,97840.0,97837.0,0.0656]
[1734812740986,0.004,97840.0,97839.0,0.051127]
[1734812741290,0.01052228,97841.0,97839.0,0.051127]
[1734812741490,0.01536001,97845.0,97842.0,0.051125]
[1734812741892,0.01536001,97845.0,97843.0,0.051124]
[1734812742096,0.051122,97849.0,97844.0,0.117324]
[1734812742799,0.009,97845.0,97844.0,0.117324]
[1734812743097,0.005,97845.0,97844.0,0.117324]
[1734812743396,0.005,97845.0,97844.0,0.118324]
[1734812744292,0.051119,97855.0,97844.0,0.0672]
[1734812744497,0.051119,97855.0,97854.0,0.3608]
[1734812744693,0.06647601,97860.0,97854.0,0.3608]
[1734812744881,0.07718279,97860.0,97859.0,0.051116]
[1734812746397,0.07818279,97860.0,97859.0,0.051116]
[1734812748200,0.02706679,97860.0,97859.0,0.051116]
[1734812749086,0.01170678,97860.0,97859.0,0.051116]
[1734812749399,0.01170678,97860.0,97854.0,0.3608]
[1734812749400,0.051119,97855.0,97854.0,0.3608]
[1734812749586,0.01170678,97860.0,97832.0,0.3608]
[1734812749895,0.051124,97845.0,97842.0,0.051125]
[1734812751087,0.3608,97849.0,97837.0,0.0656]
[1734812751288,0.3608,97849.0,97841.0,0.051125]
[1734812751494,0.051124,97846.0,97841.0,0.051125]
[1734812752093,0.051124,97846.0,97842.0,0.014]
[1734812752398,0.06648401,97845.0,97842.0,0.014]
[1734812752588,0.06648401,97845.0,97842.0,0.005]
[1734812752788,0.06648401,97845.0,97841.0,0.014]
[1734812752993,0.051124,97845.0,97841.0,0.005]
[1734812753294,0.051124,97845.0,97842.0,0.009]
[1734812754001,0.051125,97844.0,97842.0,0.009]
[1734812754389,0.051125,97844.0,97842.0,0.014]
[1734812754995,0.051125,97844.0,97842.0,0.009]
[1734812755202,0.051125,97844.0,97842.0,0.014]
[1734812758500,0.1311,97843.0,97842.0,0.014]
[1734812758905,0.1311,97843.0,97819.0,0.0654]
[1734812759102,0.3608,97822.0,97819.0,0.0654]
[1734812759406,0.3608,97822.0,97813.0,0.36164]
[1734812759617,0.3608,97822.0,97813.0,0.3608]
[1734812760310,0.3608,97822.0,97813.0,0.41194]
[1734812760509,0.3608,97822.0,97813.0,0.41274]
[1734812761104,0.3608,97822.0,97818.0,0.00253315]
[1734812761495,0.3608,97830.0,97822.0,0.051136]
[1734812761700,0.12209498,97837.0,97822.0,0.051136]
[1734812762313,0.3608,97838.0,97830.0,0.051131]
[1734812762314,0.48289498,97838.0,97830.0,0.051131]
[1734812762608,0.48289498,97838.0,97831.0,0.0658]
[1734812762794,0.05113,97834.0,97831.0,0.0658]
[1734812763304,0.37455849,97838.0,97831.0,0.0658]
[1734812763509,0.051128,97837.0,97831.0,0.0658]
[1734812763709,0.054128,97837.0,97831.0,0.0658]
[1734812763916,0.061128,97837.0,97831.0,0.0658]
[1734812764408,0.051128,97837.0,97831.0,0.0658]
[1734812764710,0.051128,97837.0,97831.0,0.0668]
[1734812765007,0.051128,97836.0,97831.0,0.0668]
[1734812765312,0.051128,97836.0,97831.0,0.0678]
[1734812765695,0.05113,97833.0,97831.0,0.0678]
[1734812766609,0.05113,97833.0,97831.0,0.0668]
[1734812766905,0.05113,97833.0,97831.0,0.0678]
[1734812767107,0.05113,97833.0,97831.0,0.0668]
[1734812767316,0.05113,97833.0,97831.0,0.0678]
[1734812767805,0.05113,97833.0,97831.0,0.0698]
[1734812768200,0.05113,97833.0,97831.0,0.0668]
[1734812768505,0.05113,97833.0,97831.0,0.0678]
[1734812768905,0.05113,97833.0,97831.0,0.0668]
[1734812770411,0.05313,97833.0,97831.0,0.0658]
[1734812771302,0.05413,97833.0,97831.0,0.0658]
[1734812771499,0.05213,97833.0,97831.0,0.0658]
[1734812771908,0.01536001,97837.0,97822.0,0.051136]
[1734812771909,0.051131,97832.0,97822.0,0.051136]
[1734812772708,0.051131,97832.0,97818.0,0.00153315]
[1734812772709,0.051131,97832.0,97825.0,0.051134]
[1734812772916,0.051131,97832.0,97826.0,0.0622]
[1734812773907,0.002,97833.0,97826.0,0.0622]
[1734812774112,0.051133,97828.0,97826.0,0.0622]
[1734812774303,0.051133,97828.0,97826.0,0.0642]
[1734812774504,0.051133,97828.0,97826.0,0.0672]
[1734812775013,0.051133,97828.0,97826.0,0.0622]
[1734812775214,0.051133,97828.0,97826.0,0.0672]
[1734812775612,0.05113,97833.0,97826.0,0.118334]
[1734812775804,0.01536001,97837.0,97826.0,0.118334]
[1734812776000,0.051132,97830.0,97826.0,0.118334]
[1734812776216,0.051129,97836.0,97828.0,0.051133]
[1734812776512,0.051131,97832.0,97828.0,0.051133]
[1734812777806,0.051131,97832.0,97828.0,0.053133]
[1734812778207,0.051131,97832.0,97828.0,0.054133]
[1734812779717,0.051131,97831.0,97828.0,0.054133]
[1734812780414,0.051132,97829.0,97828.0,0.003]
[1734812781015,0.051132,97829.0,97828.0,0.004]
[1734812781616,0.051132,97829.0,97828.0,0.005]
[1734812782424,0.051132,97829.0,97828.0,0.006]
[1734812782618,0.178332,97829.0,97828.0,0.006]
[1734812786523,0.3608,97830.0,97828.0,0.006]
[1734812787222,0.18271846,97831.0,97830.0,0.051132]